fUSD/lending_fUSD_20240702
["ID","MTS","AMOUNT","RATE_DAILY","PERIOD"]
[330918695,1719941457368,-500.0,0.00022598,4]
[330918696,1719941457377,-387.36,0.00022598,4]
[330918697,1719941457386,-462.47,0.00022598,4]
[330918698,1719941457395,-307.82,0.00022598,4]
[330918699,1719941457405,-309.09,0.00022598,4]
[330918700,1719941457415,-581.35,0.00022598,4]
[330918701,1719941457424,-500.0,0.00022598,4]
[330918702,1719941457433,-598.34,0.00022598,4]
[330918703,1719941457443,-476.62,0.00022598,4]
[330918704,1719941457452,-429.32,0.00022598,4]
[330918705,1719941457461,-441.04,0.00022598,4]
[330918706,1719941457471,-500.0,0.00022598,4]
[330918707,1719941457480,-248.61,0.00022598,4]
[330918708,1719941457489,-500.0,0.00022598,4]
[330918709,1719941457498,-500.0,0.00022598,4]
[330918710,1719941457507,-322.57,0.00022598,4]
[330918711,1719941457517,-161.34,0.00022598,4]
[330918712,1719941457526,-339.69,0.00022598,4]
[330918713,1719941457535,-184.55,0.00022598,4]
[330918714,1719941457547,-500.0,0.00022598,4]
[330918715,1719941457558,-284.24,0.00022598,4]
[330918716,1719941457567,-554.11,0.00022598,4]
[330918717,1719941457576,-500.0,0.00022598,4]
[330918718,1719941457585,-524.29,0.00022598,4]
[330918719,1719941457596,-500.0,0.00022598,4]
[330918720,1719941457605,-500.0,0.00022598,4]
[330918721,1719941457614,-500.0,0.00022598,4]
[330918722,1719941457624,-500.0,0.00022598,4]
[330918723,1719941457633,-500.0,0.00022598,4]
[330918724,1719941457642,-500.0,0.00022598,4]
[330918725,1719941457651,-500.0,0.00022598,4]
[330918726,1719941457660,-500.0,0.00022598,4]
[330918727,1719941457670,-507.61,0.00022598,4]
[330918728,1719941457679,-500.0,0.00022598,4]
[330918729,1719941457689,-500.0,0.00022598,4]
[330918730,1719941457698,-500.0,0.00022598,4]
[330918731,1719941457707,-500.0,0.00022598,4]
[330918732,1719941457716,-500.0,0.00022598,4]
[330918733,1719941457761,-500.0,0.00022598,4]
[330918734,1719941457770,-208.36917215,0.00022598,4]
[330918735,1719941457780,-283.4,0.00022598,4]
[330918736,1719941457789,-500.0,0.00022598,4]
[330918737,1719941457798,-168.77,0.00022598,4]
[330918738,1719941457807,-500.0,0.00022598,4]
[330918739,1719941457817,-500.0,0.00022598,4]
[330918740,1719941457828,-500.0,0.00022598,4]
[330918741,1719941457838,-500.0,0.00022598,4]
[330918742,1719941457847,-367.1,0.00022598,4]
[330918743,1719941457857,-500.0,0.00022598,4]
[330918744,1719941457867,-175.77,0.00022598,4]
[330918745,1719941457876,-464.32,0.00022598,4]
[330918746,1719941457886,-248.9,0.00022598,4]
[330918747,1719941457896,-500.0,0.00022598,4]
[330918748,1719941457905,-395.81,0.00022598,4]
[330918749,1719941457915,-500.0,0.00022598,4]
[330918750,1719941457926,-189.37,0.00022598,4]
[330918751,1719941457935,-533.41,0.00022598,4]
[330918752,1719941457946,-301.37,0.00022598,4]
[330918753,1719941457955,-185.35,0.00022598,4]
[330918754,1719941457964,-591.96,0.00022598,4]
[330918755,1719941457975,-345.34,0.00022598,4]
[330918756,1719941457985,-391.97,0.00022598,4]
[330918757,1719941457995,-373.17,0.00022598,4]
[330918758,1719941458004,-500.0,0.00022598,4]
[330918759,1719941458013,-692.10584066,0.00022648,2]
[330918760,1719941458022,-150.05280115,0.00022659,2]
[330918761,1719941458031,-2000.0,0.00022698,2]
[330918762,1719941458041,-479.68,0.00022698,4]
[330918763,1719941458050,-500.0,0.00022698,4]
[330918764,1719941458060,-444.15226671,0.00022729,2]
[330918765,1719941458214,-247.95357395,0.00022729,2]
[330918766,1719941458223,-248.2,0.00022769,4]
[330918767,1719941458232,-500.0,0.00022769,4]
[330918768,1719941458242,-500.0,0.00022769,4]
[330918769,1719941458250,-500.0,0.00022769,4]
[330918770,1719941458260,-500.0,0.00022769,4]
[330918771,1719941458270,-692.10584066,0.00022809,2]
[330918772,1719941458281,-800.0,0.00022849,2]
[330918773,1719941458290,-500.0,0.00022868,4]
[330918774,1719941458299,-154.27332676,0.00022878,2]
[330918775,1719941458308,-151.74222812,0.00022884,2]
[330918776,1719941458318,-169.97824518,0.00022888,2]
[330918777,1719941458327,-500.0,0.00022888,4]
[330918778,1719941458336,-500.0,0.00022888,4]
[330918779,1719941458346,-500.0,0.00022888,4]
[330918780,1719941458356,-283.0,0.00022888,4]
[330918781,1719941458365,-500.0,0.00022888,4]
[330918782,1719941458374,-500.0,0.00022888,4]
[330918783,1719941458383,-500.0,0.00022888,4]
[330918784,1719941458392,-5043.61774873,0.00022889,2]
[330918785,1719941458401,-500.0,0.00022889,4]
[330918786,1719941458411,-500.0,0.00022889,4]
[330918787,1719941458420,-500.0,0.00022889,4]
[330918788,1719941458429,-491.27,0.00022889,4]
[330918789,1719941458439,-642.92,0.00022889,4]
[330918790,1719941458448,-500.0,0.00022889,4]
[330918791,1719941458458,-500.0,0.00022889,4]
[330918792,1719941458468,-429.06,0.00022889,4]
[330918793,1719941458477,-576.4,0.00022889,4]
[330918794,1719941458486,-500.0,0.00022889,4]
[330918795,1719941458495,-150.0,0.00022889,4]
[330918796,1719941458504,-471.21,0.00022889,4]
[330918797,1719941458514,-500.0,0.00022889,4]
[330918798,1719941458523,-400.04,0.00022889,4]
[330918799,1719941458531,-626.56,0.00022889,4]
[330918800,1719941458540,-500.0,0.00022889,4]
[330918801,1719941458550,-500.0,0.00022889,4]
[330918802,1719941458559,-500.0,0.00022889,4]
[330918803,1719941458568,-500.0,0.00022889,4]
[330918804,1719941458578,-500.0,0.00022889,4]
[330918805,1719941458587,-397.4,0.00022889,4]
[330918806,1719941458597,-498.27,0.00022889,4]
[330918807,1719941458606,-500.0,0.00022889,4]
[330918808,1719941458616,-500.0,0.00022889,4]
[330918809,1719941458625,-500.0,0.00022889,4]
[330918810,1719941458634,-391.92,0.00022889,4]
[330918811,1719941458644,-563.65,0.00022889,4]
[330918812,1719941458653,-644.84,0.00022889,4]
[330918813,1719941458663,-500.0,0.00022889,4]
[330918814,1719941458672,-500.0,0.00022889,4]
[330918815,1719941458681,-560.2,0.00022889,4]
[330918816,1719941458690,-500.0,0.00022889,4]
[330918817,1719941458699,-275.53,0.00022889,4]
[330918818,1719941458709,-500.0,0.00022889,4]
[330918819,1719941458718,-3026.50719664,0.00022889,2]
[330918820,1719941458727,-500.0,0.00022889,4]
[330918821,1719941458737,-500.0,0.00022889,4]
[330918822,1719941458746,-500.0,0.00022889,4]
[330918823,1719941458756,-500.0,0.00022889,4]
[330918824,1719941458766,-9625.69034155,0.00022889,2]
[330918825,1719941458776,-500.0,0.00022889,4]
[330918826,1719941458785,-214.57866968,0.00022889,4]
[330918827,1719941458794,-500.0,0.00022889,4]
[330918828,1719941458803,-5043.61774868,0.00022889,2]
[330918829,1719941458813,-5043.61774868,0.00022889,2]
[330918830,1719941458822,-5043.61774868,0.00022889,2]
[330918831,1719941458831,-5043.61774868,0.00022889,2]
[330918832,1719941458841,-5043.61774868,0.00022889,2]
[330918833,1719941458850,-3026.50719664,0.0002289,2]
[330918834,1719941458859,-9625.69034155,0.0002289,2]
[330918835,1719941458868,-5043.61774868,0.0002289,2]
[330918836,1719941458877,-5043.61774868,0.0002289,2]
[330918837,1719941458887,-5043.61774868,0.0002289,2]
[330918838,1719941458896,-5043.61774868,0.0002289,2]
[330918839,1719941458905,-5043.61774868,0.0002289,2]
[330918840,1719941458914,-5043.61774868,0.0002289,2]
[330918841,1719941458923,-692.10584066,0.0002289,2]
[330918842,1719941458931,-189.72053679,0.0002289,2]
[330918843,1719941458941,-3026.50719664,0.0002289,2]
[330918844,1719941458951,-310.45683606,0.0002289,2]
[330918845,1719941458960,-9625.69034155,0.0002289,2]
[330918846,1719941458969,-500.0,0.00022898,4]
[330918847,1719941458978,-500.0,0.00022898,4]
[330918848,1719941458987,-393.00785907,0.00022898,4]
[330918849,1719941458996,-500.0,0.00022898,4]
[330918850,1719941459005,-261.55014102,0.00022898,4]
[330918851,1719941459014,-350.96,0.00022899,4]
[330918852,1719941459023,-407.96,0.00022899,4]
[330918853,1719941459032,-603.96,0.00022899,4]
[330918854,1719941459041,-195.44,0.00022899,4]
[330918855,1719941459050,-498.88,0.00022899,4]
[330918856,1719941459059,-215.38,0.00022899,4]
[330918857,1719941459068,-437.24,0.00022899,4]
[330918858,1719941459077,-318.36,0.00022899,4]
[330918859,1719941459086,-150.93,0.00022899,4]
[330918860,1719941459097,-212.51,0.00022899,4]
[330918861,1719941459107,-421.0,0.00022899,4]
[330918862,1719941459116,-500.0,0.00022899,4]
[330918863,1719941459131,-332.33,0.00022899,4]
[330918864,1719941459141,-597.69,0.00022899,4]
[330918865,1719941459151,-500.0,0.00022899,4]
[330918866,1719941459160,-500.0,0.00022899,4]
[330918867,1719941459171,-500.0,0.00022899,4]
[330918868,1719941459180,-500.0,0.00022899,4]
[330918869,1719941459189,-500.0,0.00022899,4]
[330918870,1719941459198,-273.17,0.00022899,4]
[330918871,1719941459208,-426.63,0.00022899,4]
[330918872,1719941459218,-150.0,0.00022899,4]
[330918873,1719941459228,-500.0,0.00022899,4]
[330918874,1719941459237,-500.0,0.00022899,4]
[330918875,1719941459247,-263.85,0.00022899,4]
[330918876,1719941459256,-182.57,0.00022899,4]
[330918877,1719941459266,-482.22,0.00022899,4]
[330918878,1719941459279,-410.86,0.00022899,4]
[330918879,1719941459289,-500.0,0.00022899,4]
[330918880,1719941459298,-500.0,0.00022899,4]
[330918881,1719941459307,-272.85,0.00022899,4]
[330918882,1719941459316,-500.0,0.00022899,4]
[330918883,1719941459325,-500.0,0.00022899,4]
[330918884,1719941459333,-500.0,0.00022899,4]
[330918885,1719941459345,-500.0,0.00022899,4]
[330918886,1719941459354,-500.0,0.00022899,4]
[330918887,1719941459363,-500.0,0.00022899,4]
[330918888,1719941459373,-473.02,0.00022899,4]
[330918889,1719941459383,-429.36,0.00022899,4]
[330918890,1719941459392,-500.0,0.00022899,4]
[330918891,1719941459402,-500.0,0.00022899,4]
[330918892,1719941459411,-500.0,0.00022899,4]
[330918893,1719941459420,-500.0,0.00022899,4]
[330918894,1719941459430,-155.81,0.00022899,4]
[330918895,1719941459439,-500.0,0.00022899,4]
[330918896,1719941459448,-500.0,0.00022899,4]
[330918897,1719941459457,-291.46,0.00022899,4]
[330918898,1719941459466,-500.0,0.00022899,4]
[330918899,1719941459476,-350.61,0.00022899,4]
[330918900,1719941459485,-350.56,0.00022899,4]
[330918901,1719941459494,-500.0,0.00022899,4]
[330918902,1719941459503,-500.0,0.00022899,4]
[330918903,1719941459512,-164.94,0.00022899,4]
[330918904,1719941459521,-217.4,0.00022899,4]
[330918905,1719941459531,-336.16,0.00022899,4]
[330918906,1719941459540,-340.23,0.00022899,4]
[330918907,1719941459550,-500.0,0.00022899,4]
[330918908,1719941459559,-4492.49,0.00022899,4]
[330918909,1719941459568,-500.0,0.00022899,4]
[330918910,1719941459577,-500.0,0.00022899,4]
[330918911,1719941459587,-500.0,0.00022899,4]
[330918912,1719941459597,-500.0,0.00022899,4]
[330918913,1719941459606,-387.75,0.00022899,4]
[330918914,1719941459615,-233.27,0.00022899,4]
[330918915,1719941459624,-500.0,0.00022899,4]
[330918916,1719941459633,-500.0,0.00022899,4]
[330918917,1719941459642,-423.93,0.00022899,4]
[330918918,1719941459651,-500.0,0.00022899,4]
[330918919,1719941459660,-500.0,0.00022899,4]
[330918920,1719941459669,-500.0,0.00022899,4]
[330918921,1719941459678,-308.93,0.00022899,4]
[330918922,1719941459690,-586.46573198,0.00022899,4]
[330918923,1719941459699,-500.0,0.00022899,4]
[330918924,1719941459708,-217.16389434,0.00022899,4]
[330918925,1719941459717,-500.0,0.00022899,4]
[330918926,1719941459726,-185.78,0.00022899,4]
[330918927,1719941459735,-361.68,0.00022899,4]
[330918928,1719941459745,-603.36,0.00022899,4]
[330918929,1719941459756,-500.0,0.00022899,4]
[330918930,1719941459765,-500.0,0.00022899,4]
[330918931,1719941459774,-264.18,0.00022899,4]
[330918932,1719941459783,-500.0,0.00022899,4]
[330918933,1719941459792,-625.0,0.00022899,4]
[330918934,1719941459802,-625.0,0.00022899,4]
[330918935,1719941459811,-500.0,0.00022899,4]
[330918936,1719941459821,-500.0,0.00022899,4]
[330918937,1719941459830,-469.7,0.00022899,4]
[330918938,1719941459841,-500.0,0.00022899,4]
[330918939,1719941459850,-617.8,0.00022899,4]
[330918940,1719941459859,-500.0,0.00022899,4]
[330918941,1719941459867,-588.46,0.00022899,4]
[330918942,1719941459877,-500.0,0.00022899,4]
[330918943,1719941459886,-500.0,0.00022899,4]
[330918944,1719941459896,-500.0,0.00022899,4]
[330918945,1719941459905,-486.53,0.00022899,4]
[330918946,1719941459914,-500.0,0.00022899,4]
[330918947,1719941459924,-500.0,0.00022899,4]
[330918948,1719941459933,-500.0,0.00022899,4]
[330918949,1719941459942,-500.0,0.00022899,4]
[330918950,1719941459952,-500.0,0.00022899,4]
[330918951,1719941459961,-500.0,0.00022899,4]
[330918952,1719941459974,-500.0,0.00022899,4]
[330918953,1719941459984,-241.399999,0.000229,2]
[330918954,1719941459993,-491.0,0.000229,5]
[330918955,1719941460003,-491.0,0.000229,5]
[330918956,1719941460012,-489.0,0.000229,5]
[330918957,1719941460022,-191.0,0.000229,5]
[330918958,1719941460032,-199532.30748399,0.000229,2]
[330918959,1719941460046,-2156.45869733,0.000229,2]
[330918960,1719941460057,-22870.23458186,0.000229,2]
[330918961,1719941460069,-5669.09445492,0.000229,2]
[330918962,1719941460088,-278.90148217,0.000229,2]
[330918963,1719941460104,-17965.72626211,0.000229,2]
[330918964,1719941460115,-1527.27703762,0.000229,2]
[330918965,1719941460124,-1104.44226968,0.00022943,2]
[330918966,1719941460136,-189.02465663,0.00022973,2]
[330918967,1719941460146,-500.0,0.00022974,2]
[330918968,1719941460155,-567.557425,0.00022974,2]
[330918969,1719941460165,-567.557425,0.00022974,2]
[330918970,1719941460174,-567.557425,0.00022974,2]
[330918971,1719941460185,-567.557425,0.00022974,2]
[330918972,1719941460194,-567.557425,0.00022974,2]
[330918973,1719941460204,-567.557425,0.00022981,2]
[330918974,1719941460215,-500.0,0.00022986,4]
[330918975,1719941460225,-500.0,0.00022986,4]
[330918976,1719941460234,-279.11148586,0.00022986,4]
[330918977,1719941460246,-220.88851414,0.00022986,4]
[330918978,1719941460256,-500.0,0.00022986,4]
[330918979,1719941460266,-500.0,0.00022986,4]
[330918980,1719941460278,-500.0,0.00022986,4]
[330918981,1719941460288,-500.0,0.00022986,4]
[330918982,1719941460299,-500.0,0.00022986,4]
[330918983,1719941460308,-78.75148586,0.00022986,4]
[330918984,1719941460320,-421.24851414,0.00022986,4]
[330918985,1719941460330,-711.198584,0.00022986,4]
[330918986,1719941460343,-385.32366773,0.00022986,4]
[330918987,1719941460462,-227.09542874,0.00018919,2]
[330918988,1719941460472,-3395.96774827,0.00022986,4]
[330918989,1719941460482,-500.0,0.00022986,4]
[330918990,1719941460492,-500.0,0.00022986,4]
[330918991,1719941460501,-500.0,0.00022986,4]
[330918992,1719941460511,-386.05,0.00022987,4]
[330918993,1719941460520,-500.0,0.00022987,4]
[330918994,1719941460530,-500.0,0.00022987,4]
[330918995,1719941460540,-611.54,0.00022987,4]
[330918996,1719941460549,-500.0,0.00022987,4]
[330918997,1719941460559,-500.0,0.00022987,4]
[330918998,1719941460568,-500.0,0.00022987,4]
[330918999,1719941460578,-446.63,0.00022987,4]
[330919000,1719941460587,-500.0,0.00022987,4]
[330919001,1719941460597,-500.0,0.00022987,4]
[330919002,1719941460607,-500.0,0.00022987,4]
[330919003,1719941460617,-500.0,0.00022987,4]
[330919004,1719941460627,-500.0,0.00022987,4]
[330919005,1719941460637,-500.0,0.00022987,4]
[330919006,1719941460647,-500.0,0.00022987,4]
[330919007,1719941460656,-603.36,0.00022987,4]
[330919008,1719941460668,-500.0,0.00022987,2]
[330919009,1719941460678,-500.0,0.00022987,4]
[330919010,1719941460687,-500.0,0.00022987,4]
[330919011,1719941460698,-237.40957031,0.00022988,2]
[330919012,1719941460708,-2217.41897524,0.00022988,2]
[330919013,1719941460718,-500.0,0.00022988,4]
[330919014,1719941460727,-500.0,0.00022988,4]
[330919015,1719941460737,-307.43,0.00022988,4]
[330919016,1719941460747,-500.0,0.00022988,4]
[330919017,1719941460757,-500.0,0.00022988,4]
[330919018,1719941460769,-204.43,0.00022988,4]
[330919019,1719941460779,-179.81,0.00022988,4]
[330919020,1719941460790,-500.0,0.00022988,4]
[330919021,1719941460800,-500.0,0.00022988,4]
[330919022,1719941460812,-282.37,0.00022988,4]
[330919023,1719941460823,-500.0,0.00022988,4]
[330919024,1719941460832,-500.0,0.00022988,4]
[330919025,1719941460844,-500.0,0.00022988,4]
[330919026,1719941460853,-500.0,0.00022988,4]
[330919027,1719941460863,-500.0,0.00022988,4]
[330919028,1719941460872,-500.0,0.00022988,4]
[330919029,1719941460882,-500.0,0.00022988,4]
[330919030,1719941460891,-500.0,0.00022988,4]
[330919031,1719941460900,-500.0,0.00022988,4]
[330919032,1719941460910,-500.0,0.00022988,4]
[330919033,1719941460920,-263.86,0.00022988,4]
[330919034,1719941460929,-500.0,0.00022988,4]
[330919035,1719941460939,-500.0,0.00022988,4]
[330919036,1719941460948,-500.0,0.00022988,4]
[330919037,1719941460958,-589.28,0.00022988,4]
[330919038,1719941460968,-197.7,0.00022988,4]
[330919039,1719941460977,-413.03,0.00022988,4]
[330919040,1719941460987,-500.0,0.00022988,4]
[330919041,1719941460996,-500.0,0.00022988,4]
[330919042,1719941461005,-500.0,0.00022988,4]
[330919043,1719941461015,-366.08,0.00022988,4]
[330919044,1719941461025,-500.0,0.00022988,4]
[330919045,1719941461035,-500.0,0.00022988,4]
[330919046,1719941461044,-500.0,0.00022988,4]
[330919047,1719941461054,-4492.49,0.00022988,4]
[330919048,1719941461063,-4492.49,0.00022988,4]
[330919049,1719941461073,-500.0,0.00022988,4]
[330919050,1719941461082,-500.0,0.00022988,4]
[330919051,1719941461092,-317.77,0.00022988,4]
[330919052,1719941461101,-500.0,0.00022988,4]
[330919053,1719941461110,-500.0,0.00022988,4]
[330919054,1719941461120,-500.0,0.00022988,4]
[330919055,1719941461131,-500.0,0.00022988,4]
[330919056,1719941461144,-500.0,0.00022988,4]
[330919057,1719941461154,-500.0,0.00022988,4]
[330919058,1719941461163,-500.0,0.00022988,4]
[330919059,1719941461175,-268.36,0.00022988,4]
[330919060,1719941461184,-500.0,0.00022988,4]
[330919061,1719941461194,-500.0,0.00022988,4]
[330919062,1719941461203,-500.0,0.00022988,4]
[330919063,1719941461214,-500.0,0.00022988,4]
[330919064,1719941461223,-500.0,0.00022988,4]
[330919065,1719941461234,-500.0,0.00022988,4]
[330919066,1719941461243,-500.0,0.00022988,4]
[330919067,1719941461253,-332.29,0.00022988,4]
[330919068,1719941461263,-500.0,0.00022988,4]
[330919069,1719941461273,-316.26,0.00022988,4]
[330919070,1719941461284,-500.0,0.00022988,4]
[330919071,1719941461294,-422.2,0.00022988,4]
[330919072,1719941461305,-500.0,0.00022988,4]
[330919073,1719941461314,-500.0,0.00022988,4]
[330919074,1719941461324,-500.0,0.00022988,4]
[330919075,1719941461335,-500.0,0.00022988,4]
[330919076,1719941461344,-500.0,0.00022988,4]
[330919077,1719941461354,-500.0,0.00022988,4]
[330919078,1719941461372,-500.0,0.00022988,4]
[330919079,1719941461385,-518.53,0.00022988,4]
[330919080,1719941461395,-567.82,0.00022988,4]
[330919081,1719941461405,-603.36,0.00022988,4]
[330919082,1719941461415,-603.36,0.00022988,4]
[330919083,1719941461426,-500.0,0.00022988,4]
[330919084,1719941461436,-500.0,0.00022988,4]
[330919085,1719941461446,-500.0,0.00022988,4]
[330919086,1719941461458,-500.0,0.00022988,4]
[330919087,1719941461469,-500.0,0.00022988,4]
[330919088,1719941461480,-310.32,0.00022988,4]
[330919089,1719941461490,-500.0,0.00022988,4]
[330919090,1719941461500,-625.0,0.00022988,4]
[330919091,1719941461510,-625.0,0.00022988,4]
[330919092,1719941461520,-625.0,0.00022988,4]
[330919093,1719941461530,-625.0,0.00022988,4]
[330919094,1719941461542,-625.0,0.00022988,4]
[330919095,1719941461552,-625.0,0.00022988,4]
[330919096,1719941461564,-500.0,0.00022988,4]
[330919097,1719941461574,-500.0,0.00022988,4]
[330919098,1719941461584,-500.0,0.00022988,4]
[330919099,1719941461595,-497.08307854,0.00022988,4]
[330919100,1719941461607,-500.0,0.00022988,4]
[330919101,1719941461617,-311.26,0.00022988,4]
[330919102,1719941461629,-500.0,0.00022988,4]
[330919103,1719941461639,-500.0,0.00022988,4]
[330919104,1719941461649,-500.0,0.00022988,4]
[330919105,1719941461660,-500.0,0.00022988,4]
[330919106,1719941461670,-500.0,0.00022988,4]
[330919107,1719941461680,-500.0,0.00022988,4]
[330919108,1719941461690,-500.0,0.00022988,4]
[330919109,1719941461700,-500.0,0.00022988,4]
[330919110,1719941461710,-500.0,0.00022988,4]
[330919111,1719941461721,-500.0,0.00022988,4]
[330919112,1719941461731,-500.0,0.00022988,4]
[330919113,1719941461741,-500.0,0.00022988,4]
[330919114,1719941461752,-500.0,0.00022988,4]
[330919115,1719941461762,-247.71558253,0.00022988,4]
[330919116,1719941461773,-500.0,0.00022988,4]
[330919117,1719941461785,-500.0,0.00022988,4]
[330919118,1719941461796,-500.0,0.00022988,4]
[330919119,1719941461806,-500.0,0.00022988,4]
[330919120,1719941461817,-500.0,0.00022988,4]
[330919121,1719941461827,-500.0,0.00022988,4]
[330919122,1719941461837,-578.61,0.00022988,4]
[330919123,1719941461850,-500.0,0.00022988,4]
[330919124,1719941461860,-500.0,0.00022988,4]
[330919125,1719941461871,-500.0,0.00022988,4]
[330919126,1719941461881,-500.0,0.00022988,4]
[330919127,1719941461892,-188.88,0.00022988,4]
[330919128,1719941461903,-500.0,0.00022988,4]
[330919129,1719941461913,-500.0,0.00022988,4]
[330919130,1719941461923,-500.0,0.00022988,4]
[330919131,1719941461934,-500.0,0.00022988,4]
[330919132,1719941461945,-500.0,0.00022988,4]
[330919133,1719941461956,-500.0,0.00022988,4]
[330919134,1719941461966,-500.0,0.00022988,4]
[330919135,1719941461977,-500.0,0.00022988,4]
[330919136,1719941461988,-89077.48066133,0.00022989,7]
[330919137,1719941462003,-4540.0,0.00022989,7]
[330919138,1719941462015,-17572.37653834,0.00022989,7]
[330919139,1719941462028,-1734.78366287,0.00022989,7]
[330919140,1719941462039,-10777.25233833,0.00022989,7]
[330919141,1719941462052,-681.83583395,0.00022989,7]
[330919142,1719941462068,-392.66360108,0.00022989,7]
[330919143,1719941462080,-268.77602007,0.00022989,7]
[330919144,1719941462092,-791.68781801,0.00022989,7]
[330919145,1719941462104,-3041.95,0.00022989,7]
[330919146,1719941462128,-369.12270208,0.00021534,2]
[330919147,1719941462144,-395.08,0.00021534,2]
[330919148,1719941462157,-11851.94698878,0.00021534,2]
[330919149,1719941462168,-531.80188952,0.00021534,2]
[330919150,1719941462180,-330.3755325,0.00021534,2]
[330919151,1719941462197,-378.76871688,0.00021534,2]
[330919152,1719941462210,-24363.90417024,0.00021534,2]
[330919153,1719941462222,-191101.2800459,0.00022989,7]
[330919154,1719941462234,-1310.42936115,0.00022989,7]
[330919155,1719941462357,-544.91435594,0.00022326,2]
[330919156,1719941462369,-1185.57,0.00022326,2]
[330919157,1719941462382,-534.16021158,0.00022326,2]
[330919158,1719941462395,-278.02428365,0.00022326,2]
[330919159,1719941462604,-915.0,0.00022898,2]
[330919160,1719941462619,-68626.77164722,0.00022989,7]
[330919161,1719941462632,-465.19651332,0.00022989,7]
[330919162,1719941462643,-11877.04014328,0.00022989,7]
[330919163,1719941462652,-150.0,0.00022989,10]
[330919164,1719941462662,-150.0,0.00022989,10]
[330919165,1719941462671,-150.0,0.00022989,10]
[330919166,1719941462681,-3699.64902923,0.00022989,2]
[330919167,1719941462692,-252.618252,0.00022989,2]
[330919168,1719941462704,-1951.92190028,0.00022989,2]
[330919169,1719941462715,-1187.166835,0.00022989,2]
[330919170,1719941462775,-16841.89202312,0.00022989,2]
[330919171,1719941462787,-1788.83831452,0.00022989,2]
[330919172,1719941462799,-95292.85973233,0.00022989,2]
[330919173,1719941462814,-5957.41720909,0.00022989,2]
[330919174,1719941462830,-1753.85498398,0.00022989,2]
[330919175,1719941462842,-404.48230813,0.00022989,2]
[330919176,1719941462855,-1284.1755862,0.00022989,2]
[330919177,1719941462867,-861.89995876,0.00022989,2]
[330919178,1719941462879,-586.36009995,0.00022989,2]
[330919179,1719941462892,-1222.58142477,0.00022989,2]
[330919180,1719941462905,-292.42714365,0.00022989,2]
[330919197,1719941744485,6040.0,0.000112,2]
[330919198,1719941744511,10000.0,0.000112,2]
[330919199,1719941744534,10000.0,0.000112,2]
[330919200,1719941744555,9203.52563758,0.000112,2]
[330919201,1719941778030,150.0,0.000112,2]
[330919202,1719941778051,150.0,0.000112,2]
[330919203,1719941778072,150.0,0.000112,2]
[330919204,1719941778092,150.0,0.000112,2]
[330919205,1719941778311,150.0,0.000112,2]
[330919206,1719941778344,150.0,0.000112,2]
[330919207,1719941778367,150.0,0.000112,2]
[330919208,1719941778391,150.0,0.000112,2]
[330919209,1719941778414,150.0,0.000112,2]
[330919210,1719941778436,150.0,0.000112,2]